fUSD/lending_fUSD_20240524
["ID","MTS","AMOUNT","RATE_DAILY","PERIOD"]
[327831209,1716528636395,-500.0,0.00013699,2]
[327831210,1716528636404,-4119.51,0.00013699,2]
[327831211,1716528636414,-307.548157,0.00013973,2]
[327831212,1716528636423,-151.13,0.00013973,2]
[327831213,1716528636432,-180.24,0.00013973,2]
[327831214,1716528636442,-530.64,0.00013973,2]
[327831215,1716528636451,-225.34,0.00013973,2]
[327831216,1716528636460,-975.40548,0.00014,2]
[327831217,1716528636470,-975.40548,0.0001431,2]
[327831218,1716528636480,-1023.45,0.00014708,2]
[327831219,1716528636489,-307.548157,0.00014795,2]
[327831220,1716528636499,-187.65905902,0.000149,2]
[327831221,1716528636508,-155.0,0.00015,2]
[327831222,1716528636517,-1000.0,0.00015426,2]
[327831223,1716528636528,-307.548157,0.00015616,2]
[327831224,1716528636538,-20617.6707,0.000163,2]
[327831225,1716528636547,-4242.0696,0.000163,2]
[327831226,1716528636556,-89130.62093959,0.000164,2]
[327831227,1716528636566,-307.548157,0.00016438,2]
[327831228,1716528636576,-155.06938859,0.00016584,2]
[327831229,1716528636585,-1023.45,0.00016871,2]
[327831230,1716528636595,-3843.0062,0.00016886,2]
[327831231,1716528636604,-5059.16674841,0.00017,2]
[327831232,1716528636614,-307.548157,0.0001726,2]
[327831233,1716528636624,-1000.0,0.00017355,2]
[327831234,1716528636634,-2537.0,0.000179,2]
[327831235,1716528636644,-307.548157,0.00018082,2]
[327831236,1716528636654,-500.0,0.000189,2]
[327831237,1716528636664,-1000.0,0.00018999,5]
[327831238,1716528636674,-78208.70570771,0.00019,2]
[327831239,1716528636684,-1023.45,0.00019034,2]
[327831240,1716528636694,-1000.0,0.00019178,2]
[327831241,1716528636703,-4119.51,0.00019178,2]
[327831242,1716528636713,-3882.63870913,0.000192,2]
[327831243,1716528636723,-1000.0,0.00019283,2]
[327831244,1716528636732,-546.0,0.000197,2]
[327831245,1716528636742,-1263.85446581,0.0002,2]
[327831246,1716528636751,-5188.06991851,0.0002,2]
[327831247,1716528636761,-862.59931804,0.0002,2]
[327831248,1716528636771,-6241.7602304,0.0002,2]
[327831249,1716528636781,-457.97826669,0.0002,2]
[327831250,1716528636791,-155.0,0.0002,2]
[327831251,1716528636800,-760.35239406,0.0002,4]
[327831252,1716528636809,-10566.75390833,0.0002,2]
[327831253,1716528636819,-629.73701896,0.0002,2]
[327831254,1716528636828,-11087.67190152,0.0002,2]
[327831255,1716528636839,-1774.2987608,0.0002,2]
[327831256,1716528636849,-155.0,0.0002,2]
[327831257,1716528636858,-1000.0,0.0002,3]
[327831258,1716528636869,-180.24,0.00020447,2]
[327831259,1716528636879,-530.64,0.00020447,2]
[327831260,1716528636888,-5523.98237797,0.00021,2]
[327831261,1716528636898,-1050.0,0.00021,2]
[327831262,1716528636907,-1023.45,0.00021197,2]
[327831263,1716528636917,-1000.0,0.00021211,2]
[327831264,1716528636926,-6773.71234994,0.000219,2]
[327831265,1716528636936,-200.08527515,0.000219,2]
[327831266,1716528636945,-502.0,0.000219,2]
[327831267,1716528636956,-267.04,0.00021918,2]
[327831268,1716528636968,-408.03,0.00021918,2]
[327831269,1716528636978,-2000.0,0.00021918,2]
[327831270,1716528636987,-184.51,0.00021918,2]
[327831271,1716528636997,-250.0,0.00021918,2]
[327831272,1716528637007,-9157.92762804,0.00022,2]
[327831273,1716528637016,-178.94556667,0.00022027,2]
[327831274,1716528637026,-155.72528575,0.00022159,2]
[327831275,1716528637035,-288.42999499,0.00022162,2]
[327831276,1716528637046,-154.58292111,0.00022195,2]
[327831277,1716528637055,-152.84019416,0.00022218,2]
[327831278,1716528637065,-190.33438509,0.00022233,2]
[327831279,1716528637075,-288.42999499,0.00022381,2]
[327831280,1716528637084,-154.09288343,0.00022429,2]
[327831281,1716528637094,-288.42999499,0.00022614,2]
[327831282,1716528637103,-155.11596389,0.0002266,2]
[327831283,1716528637120,-158.32966117,0.00022703,2]
[327831284,1716528637135,-154.09288344,0.00022833,2]
[327831285,1716528637149,-154.73255978,0.00022851,2]
[327831286,1716528637161,-3312.93561514,0.00022889,2]
[327831287,1716528637173,-3312.9356151,0.00022889,2]
[327831288,1716528637187,-3312.9356151,0.00022889,2]
[327831289,1716528637200,-3312.9356151,0.00022889,2]
[327831290,1716528637214,-3312.9356151,0.00022889,2]
[327831291,1716528637228,-1080.64652388,0.00022897,5]
[327831292,1716528637240,-2736.43371044,0.00022898,2]
[327831293,1716528637255,-2736.43371036,0.00022898,2]
[327831294,1716528637269,-2736.43371036,0.00022898,2]
[327831295,1716528637282,-2736.43371036,0.00022898,2]
[327831296,1716528637294,-2736.43371036,0.00022898,2]
[327831297,1716528637306,-157.52551263,0.00022915,2]
[327831298,1716528637319,-190.33438509,0.00022943,2]
[327831299,1716528637332,-154.58292111,0.00022992,2]
[327831300,1716528637346,-150.94174999,0.00022998,2]
[327831301,1716528637358,-155.10222249,0.00023,2]
[327831302,1716528637372,-1000.0,0.00023,3]
[327831303,1716528637383,-1100.0,0.00023,2]
[327831304,1716528637395,-154.58292111,0.00023137,2]
[327831305,1716528637407,-1000.0,0.00023139,2]
[327831306,1716528637420,-150.94174999,0.00023198,2]
[327831307,1716528637432,-3312.9356151,0.00023237,2]
[327831308,1716528637445,-2736.43371036,0.00023237,2]
[327831309,1716528637457,-150.94174999,0.00023284,2]
[327831310,1716528637471,-1023.45,0.0002336,2]
[327831311,1716528637485,-2005.42016305,0.000234,2]
[327831312,1716528637498,-170.51851868,0.00023407,2]
[327831313,1716528637509,-4565.25,0.00023557,2]
[327831314,1716528637520,-150.94174999,0.0002356,2]
[327831315,1716528637531,-288.42999499,0.00023674,2]
[327831316,1716528637543,-288.42999499,0.00023721,2]
[327831317,1716528637557,-288.42999499,0.00023761,2]
[327831318,1716528637570,-154.73255978,0.00023962,2]
[327831319,1716528637584,-150.94174999,0.00023977,2]
[327831320,1716528637594,-134822.80090526,0.00023998,2]
[327831321,1716528637607,-150.94174999,0.00024222,2]
[327831322,1716528637618,-180.0,0.0002423,2]
[327831323,1716528637632,-288.42999499,0.00024379,2]
[327831324,1716528637644,-288.42999499,0.00024639,2]
[327831325,1716528637655,-502.97867953,0.000247,2]
[327831326,1716528637666,-1000.0,0.00025,6]
[327831327,1716528637678,-18810.62660488,0.00025,2]
[327831328,1716528637690,-1150.0,0.00025,2]
[327831329,1716528637701,-152.0,0.00025,2]
[327831330,1716528637713,-154.58292111,0.00025046,2]
[327831331,1716528637727,-157.52551263,0.00025055,2]
[327831332,1716528637740,-155.06938859,0.00025091,2]
[327831333,1716528637752,-150.94174999,0.00025115,2]
[327831334,1716528637764,-156.90306799,0.00025167,2]
[327831335,1716528637776,-288.42999499,0.00025177,2]
[327831337,1716528637788,-154.58292111,0.00025184,2]
[327831338,1716528637800,-288.42999499,0.00025288,2]
[327831339,1716528637812,-157.52551263,0.00025326,2]
[327831340,1716528637823,-155.29580353,0.00025459,2]
[327831341,1716528637836,-1023.45,0.00025523,2]
[327831342,1716528637848,-288.42999499,0.00025585,2]
[327831343,1716528637860,-288.42999499,0.0002561,2]
[327831344,1716528637873,-154.58292111,0.00025811,2]
[327831345,1716528637884,-154.58292111,0.00025872,2]
[327831346,1716528637896,-155.72528575,0.00026011,2]
[327831347,1716528637907,-157.52551263,0.00026039,2]
[327831348,1716528637919,-166.66666668,0.00026104,2]
[327831349,1716528637931,-288.42999499,0.00026225,2]
[327831350,1716528637943,-150.94174999,0.00026246,2]
[327831351,1716528637958,-154.58292111,0.00026273,2]
[327831352,1716528637969,-3312.9356151,0.00026278,2]
[327831353,1716528637981,-2736.43371036,0.00026278,2]
[327831354,1716528637993,-4565.25,0.00026297,2]
[327831355,1716528638006,-190.33438511,0.00026391,2]
[327831356,1716528638018,-288.42999499,0.0002645,2]
[327831357,1716528638031,-977.37,0.00026572,2]
[327831358,1716528638043,-37912.0,0.00026572,2]
[327831359,1716528638056,-288.42999499,0.00026635,2]
[327831360,1716528638068,-155.72528575,0.00026765,2]
[327831361,1716528638080,-288.42999499,0.00026791,2]
[327831362,1716528638092,-2606.040207,0.00026849,2]
[327831363,1716528638104,-157.75495972,0.00026858,2]
[327831364,1716528638117,-154.58292111,0.00026868,2]
[327831365,1716528638130,-180.24,0.00026921,2]
[327831366,1716528638143,-530.64,0.00026921,2]
[327831367,1716528638155,-150.94174999,0.00026986,2]
[327831368,1716528638168,-1200.0,0.00027,2]
[327831369,1716528638181,-152.0,0.0002708,12]
[327831370,1716528638194,-3126.94431,0.000273,2]
[327831371,1716528638207,-150.94174999,0.00027323,2]
[327831372,1716528638219,-300.0,0.00027397,2]
[327831373,1716528638232,-1199.60639171,0.00027397,2]
[327831374,1716528638244,-1044.13352714,0.00027397,2]
[327831375,1716528638256,-37491.18177114,0.00027397,2]
[327831376,1716528638269,-1039.68474786,0.00027397,2]
[327831377,1716528638281,-500.0,0.00027397,2]
[327831378,1716528638294,-184.51,0.00027397,2]
[327831380,1716528638306,-157.52551263,0.00027436,2]
[327831383,1716528638318,-154.73255978,0.00027464,2]
[327831385,1716528638330,-288.42999499,0.00027478,2]
[327831388,1716528638342,-288.42999499,0.00027488,2]
[327831390,1716528638354,-300.0,0.00027534,2]
[327831393,1716528638367,-154.58292111,0.00027556,2]
[327831395,1716528638379,-154.73255978,0.00027559,2]
[327831397,1716528638391,-150.94174999,0.00027601,2]
[327831400,1716528638404,-301.03387277,0.00027671,2]
[327831402,1716528638416,-1023.45,0.00027686,2]
[327831404,1716528638429,-178.94556667,0.00027699,2]
[327831407,1716528638441,-155.07639621,0.0002773,2]
[327831409,1716528638453,-168.062061,0.00027851,2]
[327831411,1716528638465,-183.91694,0.00027851,2]
[327831414,1716528638478,-537.798593,0.00027851,2]
[327831415,1716528638490,-165.288314,0.00027851,2]
[327831416,1716528638502,-154.73255978,0.00027862,2]
[327831417,1716528638515,-288.42999499,0.00027882,2]
[327831418,1716528638529,-157.52551263,0.00027899,2]
[327831419,1716528638541,-444.0,0.00027913,2]
[327831420,1716528638555,-288.42999499,0.00027929,2]
[327831421,1716528638568,-154.58292111,0.0002794,2]
[327831422,1716528638581,-155.07639621,0.00027998,2]
[327831423,1716528638591,-263.28655402,0.00028,2]
[327831424,1716528638601,-178.94556667,0.00028027,2]
[327831425,1716528638610,-154.58292111,0.00028046,2]
[327831426,1716528638622,-500.0,0.00028102,2]
[327831427,1716528638632,-500.0,0.00028102,2]
[327831428,1716528638642,-500.0,0.00028102,2]
[327831429,1716528638652,-500.0,0.00028102,2]
[327831430,1716528638662,-500.0,0.00028102,2]
[327831431,1716528638672,-288.42999499,0.00028146,2]
[327831432,1716528638884,-537.798593,0.00028199,2]
[327831433,1716528638916,-133625.96570245,0.000282,2]
[327831434,1716528638927,-154.58292111,0.00028247,2]
[327831435,1716528638938,-154.58292111,0.00028282,2]
[327831436,1716528638947,-157.52551263,0.0002831,2]
[327831437,1716528638958,-56399.60257194,0.00028314,4]
[327831438,1716528638972,-168.062061,0.00028315,2]
[327831439,1716528638982,-537.798593,0.00028547,2]
[327831440,1716528638992,-150.94174999,0.00028564,2]
[327831441,1716528639002,-158.32966117,0.00028602,2]
[327831442,1716528639013,-154.73255979,0.00028671,2]
[327831443,1716528639022,-444.0,0.00028689,2]
[327831444,1716528639032,-168.062061,0.00028779,2]
[327831445,1716528639042,-178.94556667,0.00028834,2]
[327831446,1716528639052,-537.798593,0.00028895,2]
[327831447,1716528639062,-1250.0,0.00029,2]
[327831448,1716528639072,-4565.25,0.00029037,2]
[327831449,1716528639082,-152.0,0.0002917,22]
[327831450,1716528639091,-500.0,0.00029198,2]
[327831451,1716528639101,-429.98725047,0.00029198,2]
[327831452,1716528639111,-500.0,0.00029198,2]
[327831453,1716528639123,-996.83062869,0.00029215,2]
[327831454,1716528639133,-537.798593,0.00029243,2]
[327831455,1716528639143,-168.062061,0.00029243,2]
[327831456,1716528639152,-1225.0,0.00029262,2]
[327831457,1716528639162,-613.0,0.00029262,2]
[327831458,1716528639172,-289.0,0.00029262,2]
[327831459,1716528639182,-1269.342,0.00029262,2]
[327831460,1716528639192,-1648.741,0.00029262,2]
[327831461,1716528639202,-2396.0,0.00029262,2]
[327831462,1716528639212,-445.0,0.00029262,2]
[327831463,1716528639222,-809.0,0.00029262,2]
[327831464,1716528639232,-215.0,0.00029262,2]
[327831465,1716528639242,-1127.0,0.00029262,2]
[327831466,1716528639251,-1650.0,0.00029262,2]
[327831467,1716528639261,-3163.0,0.00029262,2]
[327831468,1716528639271,-5761.0,0.00029262,2]
[327831469,1716528639280,-175.861,0.00029262,2]
[327831470,1716528639290,-1466.0,0.00029262,2]
[327831471,1716528639301,-2211.252,0.00029262,2]
[327831472,1716528639311,-3312.9356151,0.00029319,2]
[327831473,1716528639320,-2736.43371036,0.00029319,2]
[327831474,1716528639330,-156.90306799,0.0002944,2]
[327831475,1716528639340,-444.0,0.00029464,2]
[327831476,1716528639349,-150.94174999,0.00029539,2]
[327831477,1716528639359,-160.69549542,0.00029544,2]
[327831478,1716528639369,-975.0,0.00029572,2]
[327831479,1716528639379,-3094.422,0.00029572,2]
[327831480,1716528639388,-157.75495973,0.00029573,2]
[327831481,1716528639408,-154.58292111,0.00029644,2]
[327831482,1716528639419,-150.94174999,0.00029658,2]
[327831483,1716528639429,-155.72528575,0.00029777,2]
[327831484,1716528639439,-7738.9307,0.000298,2]
[327831485,1716528639450,-1023.45,0.00029848,2]
[327831486,1716528639460,-5690.83016937,0.0003,2]
[327831487,1716528639471,-250000.0,0.0003,5]
[327831488,1716528639481,-1003.9,0.0003,2]
[327831489,1716528639491,-288.42999499,0.00030053,7]
[327831490,1716528639501,-152.84019416,0.00030059,7]
[327831491,1716528639512,-152.84019416,0.00030136,7]
[327831492,1716528639522,-156.90306799,0.00030151,7]
[327831493,1716528639532,-444.0,0.0003024,2]
[327831494,1716528639543,-500.0,0.00030294,10]
[327831495,1716528639552,-500.0,0.00030294,10]
[327831496,1716528639562,-252.29285456,0.00030537,2]
[327831497,1716528639575,-158.32966117,0.00030664,7]
[327831498,1716528639585,-155.0,0.00030665,2]
[327831499,1716528639595,-150.94174999,0.00030867,7]
[327831500,1716528639606,-288.42999499,0.00030956,7]
[327831501,1716528639616,-150.13188265,0.00031,2]
[327831502,1716528639627,-1300.0,0.00031,2]
[327831503,1716528639637,-444.0,0.00031015,2]
[327831504,1716528639647,-224.0,0.000311,2]
[327831505,1716528639657,-354.0,0.000311,2]
[327831506,1716528639667,-1000.0,0.000311,2]
[327831507,1716528639678,-166.66666668,0.00031113,7]
[327831508,1716528639688,-150.94174999,0.00031134,7]
[327831509,1716528639698,-288.42999499,0.00031142,7]
[327831510,1716528639710,-152.0,0.0003125,32]
[327831511,1716528639719,-150.0,0.00031369,2]
[327831512,1716528639729,-150.0,0.00031386,2]
[327831513,1716528639739,-500.0,0.0003139,10]
[327831514,1716528639749,-354.226857,0.0003139,10]
[327831515,1716528639759,-150.94174999,0.00031419,7]
[327831516,1716528639770,-150.94174999,0.00031445,7]
[327831517,1716528639781,-288.42999499,0.00031458,7]
[327831518,1716528639793,-150.0,0.00031555,2]
[327831519,1716528639803,-150.0,0.00031568,2]
[327831520,1716528639812,-200.0,0.00031594,2]
[327831521,1716528639822,-500.0,0.00031594,2]
[327831522,1716528639832,-200.0,0.00031594,2]
[327831523,1716528639841,-150.0,0.00031626,2]
[327831524,1716528639851,-169.00998555,0.00031717,7]
[327831525,1716528639862,-444.0,0.0003179,2]
[327831526,1716528639874,-150.0,0.00031834,2]
[327831527,1716528639885,-150.0,0.00031843,2]
[327831528,1716528639895,-150.0,0.00031851,2]
[327831529,1716528639906,-154.58292111,0.00031868,7]
[327831530,1716528639917,-300.0,0.0003191,2]
[327831531,1716528639928,-150.0,0.00031927,2]
[327831532,1716528639939,-2159.40303819,0.00031937,3]
[327831533,1716528640170,-65714.14072864,0.00031937,3]
[327831534,1716528640179,-150.0,0.00031958,2]
[327831535,1716528640190,-150.0,0.00031985,2]
[327831536,1716528640199,-150.0,0.00031987,2]
[327831537,1716528640209,-333.67844637,0.00032,4]
[327831538,1716528640218,-1000.0,0.00032,8]
[327831539,1716528640228,-150.0,0.00032003,2]
[327831540,1716528640238,-150.0,0.00032003,2]
[327831541,1716528640248,-150.0,0.00032005,2]
[327831542,1716528640258,-1023.45,0.00032011,2]
[327831545,1716528640270,-450.0,0.00032013,4]
[327831548,1716528640279,-150.0,0.00032052,2]
[327831551,1716528640289,-150.94174999,0.00032066,7]
[327831554,1716528640300,-150.0,0.00032089,2]
[327831556,1716528640309,-152.84019416,0.00032129,7]
[327831559,1716528640319,-157.52551263,0.00032165,7]
[327831561,1716528640329,-166.66666668,0.00032166,7]
[327831563,1716528640339,-150.0,0.00032204,2]
[327831565,1716528640349,-150.0,0.00032206,2]
[327831567,1716528640358,-300.75,0.00032219,2]
[327831569,1716528640371,-164.84,0.00032219,2]
[327831571,1716528640380,-150.0,0.00032225,2]
[327831573,1716528640390,-300.0,0.00032226,2]
[327831575,1716528640400,-150.0,0.0003224,2]
[327831577,1716528640410,-150.0,0.00032257,2]
[327831578,1716528640420,-1225.0,0.00032262,2]
[327831579,1716528640430,-613.0,0.00032262,2]
[327831581,1716528640440,-1263.0,0.00032262,2]
[327831582,1716528640451,-1644.0,0.00032262,2]
[327831583,1716528640460,-2396.0,0.00032262,2]
[327831584,1716528640471,-320.541,0.00032262,2]
[327831585,1716528640480,-215.0,0.00032262,2]
[327831586,1716528640490,-1349.0,0.00032262,2]
[327831587,1716528640499,-3163.0,0.00032262,2]
[327831588,1716528640510,-986.377,0.00032262,2]
[327831589,1716528640520,-150.0,0.00032262,2]
[327831590,1716528640530,-446.713,0.00032262,2]
[327831591,1716528640540,-150.0,0.00032293,2]
[327831592,1716528640550,-150.0,0.0003231,2]
[327831593,1716528640560,-150.0,0.00032315,2]
[327831594,1716528640570,-150.0,0.00032341,2]
[327831595,1716528640579,-3312.9356151,0.00032359,2]
[327831596,1716528640589,-2736.43371036,0.00032359,2]
[327831597,1716528640599,-166.66666667,0.00032371,7]
[327831598,1716528640608,-150.0,0.00032394,2]
[327831599,1716528640620,-150.0,0.00032443,2]
[327831600,1716528640629,-150.0,0.00032451,2]
[327831601,1716528640639,-150.0,0.00032468,2]
[327831602,1716528640648,-150.0,0.00032479,2]
[327831603,1716528640658,-500.0,0.00032486,10]
[327831604,1716528640668,-154.58292111,0.00032494,7]
[327831605,1716528640678,-150.0,0.00032513,2]
[327831606,1716528640687,-444.0,0.00032566,2]
[327831607,1716528640696,-150.0,0.00032567,2]
[327831608,1716528640706,-150.0,0.00032605,2]
[327831609,1716528640716,-150.0,0.0003261,2]
[327831610,1716528640726,-150.94175009,0.0003262,7]
[327831611,1716528640735,-150.0,0.00032621,2]
[327831612,1716528640745,-150.0,0.00032667,2]
[327831613,1716528640755,-150.0,0.00032673,2]
[327831614,1716528640765,-150.0,0.00032674,2]
[327831615,1716528640775,-150.0,0.00032683,2]
[327831616,1716528640785,-155.72528575,0.00032687,7]
[327831617,1716528640794,-150.0,0.00032693,2]
[327831618,1716528640804,-154.58292111,0.00032714,7]
[327831619,1716528640814,-150.0,0.0003273,2]
[327831620,1716528640825,-286.16,0.00032767,2]
[327831621,1716528640834,-150.0,0.00032767,2]
[327831622,1716528640844,-150.0,0.00032767,2]
[327831623,1716528640854,-150.0,0.00032767,2]
[327831624,1716528640863,-150.0,0.00032767,2]
[327831625,1716528640874,-150.0,0.00032767,2]
[327831626,1716528640884,-150.0,0.00032767,2]
[327831627,1716528640894,-150.0,0.00032767,2]
[327831628,1716528640904,-10000.0,0.00032776,2]
[327831629,1716528640914,-150.0,0.0003278,2]
[327831630,1716528640924,-11608.39605,0.000328,2]
[327831631,1716528640934,-150.0,0.0003281,2]
[327831632,1716528640945,-150.0,0.00032819,2]
[327831633,1716528640955,-3454.307,0.00032835,2]
[327831634,1716528640969,-152.84019418,0.00032849,7]
[327831635,1716528640979,-150.0,0.00032874,2]
[327831636,1716528640989,-2438.35,0.00032876,30]
[327831637,1716528640999,-2438.35,0.00032876,30]
[327831638,1716528641009,-2438.35,0.00032876,30]
[327831639,1716528641019,-2438.35,0.00032876,30]
[327831640,1716528641031,-2438.35,0.00032876,30]
[327831641,1716528641041,-2438.35,0.00032876,30]
[327831642,1716528641051,-2438.35,0.00032876,30]
[327831643,1716528641062,-2438.35,0.00032876,30]
[327831644,1716528641072,-2438.35,0.00032876,30]
[327831645,1716528641082,-2438.35,0.00032876,30]
[327831646,1716528641092,-2438.35,0.00032876,30]
[327831647,1716528641102,-2438.35,0.00032876,30]
[327831648,1716528641112,-2438.35,0.00032876,30]
[327831649,1716528641124,-2438.35,0.00032876,30]
[327831650,1716528641134,-2438.35,0.00032876,30]
[327831651,1716528641145,-2438.35,0.00032876,30]
[327831652,1716528641154,-2438.35,0.00032876,30]
[327831653,1716528641165,-2438.35,0.00032876,30]
[327831654,1716528641176,-2438.35,0.00032876,30]
[327831655,1716528641186,-2438.35,0.00032876,30]
[327831656,1716528641197,-2438.35,0.00032876,30]
[327831657,1716528641207,-2438.35,0.00032876,30]
[327831658,1716528641217,-2438.35,0.00032876,30]
[327831659,1716528641227,-2438.58129565,0.00032876,30]
[327831660,1716528641237,-184.51,0.00032877,2]
[327831661,1716528641248,-150.0,0.00032877,2]
[327831662,1716528641258,-150.0,0.00032883,2]
[327831663,1716528641268,-288.42999499,0.00032898,7]
[327831664,1716528641279,-150.0,0.00032923,2]
[327831666,1716528641289,-150.0,0.00032985,2]
[327831667,1716528641299,-150.0,0.00032989,2]
[327831668,1716528641313,-155.0,0.00033,4]
[327831669,1716528641324,-734.106994,0.00033,2]
[327831670,1716528641335,-1350.0,0.00033,2]
[327831671,1716528641344,-150.0,0.00033008,2]
[327831672,1716528641355,-150.0,0.0003301,2]
[327831673,1716528641365,-150.0,0.00033012,2]
[327831674,1716528641377,-150.0,0.00033026,2]
[327831675,1716528641388,-150.0,0.00033037,2]
[327831676,1716528641397,-150.0,0.00033041,2]
[327831677,1716528641407,-150.0,0.00033041,2]
[327831678,1716528641416,-150.0,0.00033041,2]
[327831679,1716528641426,-150.0,0.00033045,2]
[327831680,1716528641436,-150.0,0.00033077,2]
[327831681,1716528641445,-150.0,0.00033078,2]
[327831682,1716528641455,-155.07639621,0.00033082,7]
[327831683,1716528641465,-373.39156659,0.00033084,2]
[327831684,1716528641475,-150.0,0.00033086,2]
[327831685,1716528641485,-154.58292111,0.00033088,7]
[327831686,1716528641494,-150.0,0.00033104,2]
[327831687,1716528641504,-158.32966119,0.00033106,7]
[327831688,1716528641514,-267.04,0.00033151,120]
[327831689,1716528641524,-408.03,0.00033151,120]
[327831690,1716528641534,-150.0,0.00033186,2]
[327831691,1716528641544,-150.0,0.00033201,2]
[327831692,1716528641553,-150.0,0.00033237,2]
[327831693,1716528641562,-288.42999499,0.00033241,7]
[327831694,1716528641572,-150.0,0.00033268,2]
[327831695,1716528641582,-150.0,0.0003329,2]
[327831696,1716528641592,-150.0,0.00033296,2]
[327831697,1716528641601,-150.0,0.00033315,2]
[327831698,1716528641611,-152.0,0.0003333,41]
[327831699,1716528641621,-444.0,0.00033341,2]
[327831700,1716528641631,-150.0,0.00033346,2]
[327831701,1716528641640,-150.0,0.00033349,2]
[327831702,1716528641650,-177.04319709,0.00033361,3]
[327831703,1716528641659,-150.0,0.00033368,2]
[327831704,1716528641669,-150.0,0.00033372,2]
[327831705,1716528641679,-150.0,0.00033387,2]
[327831706,1716528641688,-180.24,0.00033396,2]
[327831707,1716528641699,-530.64,0.00033396,2]
[327831708,1716528641708,-12883.1536483,0.00033398,10]
[327831709,1716528641718,-150.0,0.00033461,2]
[327831710,1716528641728,-150.0,0.00033491,2]
[327831711,1716528641737,-160.107484,0.00033492,7]
[327831712,1716528641747,-152.82,0.000335,2]
[327831713,1716528641757,-152.82,0.000335,2]
[327831714,1716528641767,-152.82,0.000335,2]
[327831715,1716528641776,-152.82,0.000335,2]
[327831716,1716528641786,-152.82,0.000335,2]
[327831717,1716528641795,-152.82,0.000335,2]
[327831718,1716528641804,-152.82,0.000335,2]
[327831719,1716528641814,-152.82,0.000335,2]
[327831720,1716528641824,-693.01,0.000335,2]
[327831721,1716528641834,-152.82,0.000335,2]
[327831722,1716528641843,-693.01,0.000335,2]
[327831723,1716528641852,-693.01,0.000335,2]
[327831724,1716528641862,-152.82,0.000335,2]
[327831725,1716528641874,-693.01,0.000335,2]
[327831726,1716528641883,-693.01,0.000335,2]
[327831727,1716528641893,-152.82,0.000335,2]
[327831728,1716528641902,-693.01,0.000335,2]
[327831729,1716528641912,-152.82,0.000335,2]
[327831730,1716528641922,-693.01,0.000335,2]
[327831731,1716528641932,-152.82,0.000335,2]
[327831732,1716528641942,-693.01,0.000335,2]
[327831733,1716528641954,-152.82,0.000335,2]
[327831734,1716528641967,-693.01,0.000335,2]
[327831735,1716528641976,-693.01,0.000335,2]
[327831736,1716528642163,-693.01,0.000335,2]
[327831737,1716528642176,-693.01,0.000335,2]
[327831738,1716528642187,-152.82,0.000335,2]
[327831739,1716528642198,-693.01,0.000335,2]
[327831740,1716528642209,-152.82,0.000335,2]
[327831741,1716528642219,-693.01,0.000335,2]
[327831742,1716528642229,-152.82,0.000335,2]
[327831743,1716528642239,-693.01,0.000335,2]
[327831744,1716528642249,-152.82,0.000335,2]
[327831745,1716528642259,-693.01,0.000335,2]
[327831746,1716528642269,-693.01,0.000335,2]
[327831747,1716528642280,-152.82,0.000335,2]
[327831748,1716528642290,-568.12972266,0.000335,2]
[327831749,1716528643051,-124.88027734,0.000335,2]
[327831750,1716528643066,-494.76984931,0.000335,2]
[327831751,1716528643081,-198.24015069,0.000335,2]
[327831752,1716528643091,-693.01,0.000335,2]